bitfinex/quotes_SOLUSD_20240917
["timestamp","ask_amount","ask_price","bid_price","bid_amount"]
[1726563614904,7.5306,132.79,132.74,19.093412]
[1726563614905,7.5306,132.79,132.75,7.5327]
[1726563623901,7.5306,132.79,132.76,7.5323]
[1726563624285,27.5303,132.8,132.76,7.5323]
[1726563624485,27.5303,132.8,132.76,22.746]
[1726563624690,27.5303,132.8,132.77,7.5317]
[1726563624892,7.5303,132.8,132.77,7.5317]
[1726563625698,7.5303,132.8,132.76,41.5763]
[1726563627474,7.5307,132.79,132.76,41.5763]
[1726563629101,7.5302,132.8,132.76,41.5763]
[1726563639120,7.5302,132.8,132.77,7.5317]
[1726563640221,7.5302,132.8,132.76,41.5763]
[1726563640413,7.5307,132.79,132.76,41.5763]
[1726563640613,23.776884,132.81,132.76,41.5763]
[1726563640614,7.5303,132.8,132.76,41.5763]
[1726563642116,11.47437576,132.82,132.78,7.531]
[1726563642321,11.47387576,132.83,132.79,7.5302]
[1726563642499,11.47387576,132.83,132.79,9.03621701]
[1726563642699,11.47387576,132.83,132.79,7.5302]
[1726563644112,7.529,132.82,132.78,26.3591]
[1726563644307,8.63187379,132.82,132.78,26.3591]
[1726563644512,7.5308,132.79,132.76,15.2137]
[1726563647024,7.5313,132.78,132.76,15.2137]
[1726563648701,20.0,132.78,132.74,0.260412]
[1726563648900,7.532,132.77,132.74,0.260412]
[1726563649120,27.5313,132.78,132.74,7.793812]
[1726563649323,20.0,132.78,132.75,7.5328]
[1726563649517,27.5312,132.78,132.74,7.793612]
[1726563652116,20.0,132.78,132.75,7.5326]
[1726563652620,27.5313,132.78,132.75,7.5326]
[1726563653424,27.5313,132.78,132.74,7.793712]
[1726563655143,7.532,132.77,132.74,7.793712]
[1726563655841,7.5328,132.76,132.74,0.260412]
[1726563657130,7.5329,132.75,132.74,0.260412]
[1726563657425,7.5326,132.76,132.74,0.260412]
[1726563669148,7.5329,132.75,132.74,0.260412]
[1726563670153,7.5329,132.75,132.7,16.192212]
[1726563670154,7.5341,132.73,132.7,23.727412]
[1726563671351,7.5341,132.73,132.7,35.031612]
[1726563672264,7.5341,132.73,132.7,42.567312]
[1726563674335,7.5335,132.74,132.71,7.5351]
[1726563674662,7.5335,132.74,132.7,35.031612]
[1726563674663,7.5342,132.73,132.7,35.031612]
[1726563679068,43.776884,132.74,132.7,0.260412]
[1726563679253,18.8324,132.75,132.7,0.260412]
[1726563679254,7.5352,132.71,132.7,0.260412]
[1726563682446,31.312084,132.71,132.7,0.260412]
[1726563682653,51.312084,132.71,132.7,0.260412]
[1726563682862,51.312084,132.71,132.66,30.664512]
[1726563682863,7.5367,132.69,132.66,23.126712]
[1726563684754,27.536,132.7,132.66,30.664712]
[1726563684963,51.312884,132.7,132.66,30.664712]
[1726563686242,20.0,132.7,132.67,7.5373]
[1726563688668,7.5358,132.7,132.67,7.5373]
[1726563688887,7.5358,132.7,132.66,30.664512]
[1726563689173,7.5358,132.7,132.67,7.5374]
[1726563689750,7.5358,132.7,132.66,30.664512]
[1726563689948,7.5364,132.69,132.66,30.664512]
[1726563690768,27.536,132.7,132.66,30.664512]
[1726563691351,7.5364,132.69,132.66,23.126712]
[1726563691564,7.5364,132.69,132.66,30.664712]
[1726563692670,27.5359,132.7,132.66,30.664712]
[1726563692872,23.776884,132.71,132.68,7.5368]
[1726563692873,31.312184,132.71,132.68,7.5368]
[1726563693059,20.0,132.71,132.68,7.5368]
[1726563693272,27.5353,132.71,132.68,7.5368]
[1726563693570,7.5348,132.72,132.68,7.5368]
[1726563693777,1.31366712,132.76,132.7,7.5354]
[1726563693963,7.534,132.74,132.7,7.5354]
[1726563694278,1.31366712,132.76,132.69,26.3769]
[1726563694279,7.5342,132.73,132.69,26.3769]
[1726563695051,7.5337,132.74,132.7,7.5357]
[1726563696154,7.5331,132.75,132.71,9.04206755]
[1726563696557,7.5326,132.76,132.72,7.5346]
[1726563699854,7.5333,132.75,132.71,26.3728]
[1726563700456,7.5341,132.73,132.7,21.5303]
[1726563700763,7.5347,132.72,132.7,15.1129]
[1726563701266,7.5347,132.72,132.68,26.3777]
[1726563707890,7.5347,132.72,132.69,7.5363]
[1726563709890,7.5335,132.74,132.7,7.5354]
[1726563710183,7.5335,132.74,132.67,44.0599]
[1726563710184,20.0,132.74,132.67,44.0599]
[1726563710501,7.534,132.73,132.7,18.838]
[1726563710691,7.5337,132.74,132.7,18.838]
[1726563711190,7.5337,132.74,132.7,26.3733]
[1726563712877,7.5337,132.74,132.71,7.5351]
[1726563713191,31.309984,132.75,132.71,7.5351]
[1726563713370,20.0,132.74,132.71,7.5351]
[1726563713571,27.5339,132.74,132.7,26.3735]
[1726563714078,20.0,132.74,132.71,7.535]
[1726563714591,20.0,132.74,132.7,18.838]
[1726563714592,27.5336,132.74,132.7,26.3735]
[1726563720294,20.0,132.74,132.7,18.838]
[1726563720500,3.94527576,132.75,132.71,20.34349628]
[1726563720703,11.47777576,132.76,132.71,20.34349628]
[1726563721191,7.5325,132.76,132.71,20.34349628]
[1726563721383,11.47777576,132.76,132.73,7.534]
[1726563721580,7.5325,132.76,132.73,7.534]
[1726563722075,11.47727576,132.77,132.73,7.534]
[1726563722276,20.0,132.76,132.73,7.534]
[1726563722597,11.47727576,132.77,132.73,26.369]
[1726563723267,23.776884,132.76,132.72,7.5342]
[1726563723474,31.310484,132.74,132.71,25.0538]
[1726563723673,8.63647379,132.74,132.71,18.838]
[1726563725076,7.5342,132.73,132.7,23.953]
[1726563725399,7.5342,132.73,132.7,16.4175]
[1726563727696,12.64046446,132.75,132.69,26.3768]
[1726563727697,7.5347,132.72,132.69,26.3768]
[1726563728109,7.5347,132.72,132.69,18.8407]
[1726563729377,31.312584,132.71,132.67,7.5371]
[1726563730678,23.776884,132.71,132.66,35.490812]
[1726563730911,7.5373,132.68,132.66,0.260412]
[1726563731413,20.0,132.7,132.66,19.105412]
[1726563731906,3.94527576,132.73,132.66,19.105412]
[1726563731907,23.94527576,132.73,132.66,19.105412]
[1726563732079,20.0,132.7,132.67,7.5371]
[1726563735207,7.5358,132.7,132.67,7.5371]
[1726563735419,7.5358,132.7,132.66,26.643212]
[1726563737508,7.5365,132.69,132.66,19.105412]
[1726563737930,7.5359,132.7,132.66,26.643312]
[1726563739117,23.776884,132.69,132.66,26.643312]
[1726563740122,31.313284,132.69,132.66,19.105412]
[1726563741201,7.537,132.68,132.66,0.260412]
[1726563741513,7.5371,132.68,132.66,0.260412]
[1726563742289,51.314284,132.67,132.66,0.260412]
[1726563745624,43.776884,132.69,132.66,0.260412]
[1726563745807,51.313384,132.69,132.66,0.260412]
[1726563746122,31.314284,132.67,132.66,0.260412]
[1726563746321,51.314284,132.67,132.66,0.260412]
[1726563755816,31.314984,132.66,132.63,7.5396]
[1726563756628,27.5377,132.67,132.63,7.5396]
[1726563757637,7.5381,132.66,132.63,7.5396]
[1726563757813,7.5381,132.66,132.62,49.473712]
[1726563758016,7.5381,132.66,132.63,7.5396]
[1726563759635,7.5381,132.66,132.62,49.473712]
[1726563767135,20.0,132.69,132.62,49.473712]
[1726563767136,7.5386,132.65,132.62,49.473712]
[1726563768035,7.5386,132.65,132.62,41.933612]
[1726563770431,7.5386,132.65,132.62,35.674012]
[1726563771357,42.620384,132.68,132.62,16.824312]
[1726563771541,7.5397,132.63,132.62,0.260412]
[1726563771728,7.5394,132.64,132.62,0.260412]
[1726563774130,31.316584,132.63,132.62,0.260412]
[1726563775533,51.316584,132.63,132.62,0.260412]
[1726563775852,51.316584,132.63,132.58,16.839312]
[1726563775853,51.317384,132.62,132.58,16.839312]
[1726563776146,27.5405,132.62,132.58,24.381812]
[1726563776534,7.541,132.61,132.58,16.839312]
[1726563777030,7.5406,132.62,132.58,16.839312]
[1726563777231,7.5394,132.64,132.6,7.5411]
[1726563777452,20.0,132.63,132.6,7.5411]
[1726563778941,7.5398,132.63,132.59,7.5418]
[1726563780355,7.5403,132.62,132.58,43.236712]
[1726563782355,7.5409,132.61,132.58,35.694512]
[1726563782562,7.5409,132.61,132.58,16.839312]
[1726563782747,7.5417,132.6,132.58,16.839312]
[1726563783146,7.5411,132.61,132.58,16.839312]
[1726563784357,7.5415,132.6,132.58,0.260412]
[1726563785829,7.542,132.59,132.58,0.260412]
[1726563786657,31.318884,132.59,132.58,0.260412]
[1726563786834,51.318884,132.59,132.58,0.260412]
[1726563787337,51.318884,132.59,132.55,30.061]
[1726563787338,31.319484,132.58,132.55,30.0612]
[1726563788664,31.319484,132.58,132.55,23.8936]
[1726563788866,31.319484,132.58,132.55,7.5442]
[1726563789050,31.319484,132.58,132.54,19.122612]
[1726563789241,7.5435,132.57,132.54,19.122612]
[1726563790160,31.319584,132.58,132.54,26.667412]
[1726563791763,23.776884,132.58,132.54,26.667412]
[1726563792142,31.319784,132.58,132.54,26.667412]
[1726563792759,7.5431,132.57,132.54,26.667412]
[1726563793144,7.5431,132.57,132.54,19.122612]
[1726563794637,7.5431,132.57,132.54,26.667412]
[1726563794838,31.319684,132.58,132.54,26.667412]
[1726563795064,31.319684,132.58,132.55,7.5442]
[1726563797165,7.5428,132.58,132.55,7.5442]
[1726563798567,7.5428,132.58,132.54,26.667212]
[1726563799066,20.0,132.59,132.54,26.667212]
[1726563799364,31.319984,132.57,132.54,26.667212]
[1726563799754,31.319984,132.57,132.54,19.122612]
[1726563801872,31.319984,132.57,132.54,0.260412]
[1726563802668,7.5437,132.56,132.54,0.260412]
[1726563809977,7.5443,132.55,132.54,0.260412]
[1726563812384,51.321184,132.55,132.54,0.260412]
[1726563814462,20.0,132.55,132.54,0.260412]
[1726563814864,1.15743054,132.58,132.54,0.260412]
[1726563815071,23.776884,132.57,132.54,0.260412]
[1726563815362,20.0,132.56,132.54,0.260412]
[1726563816081,1.15743054,132.58,132.55,7.5442]
[1726563816256,16.15555357,132.59,132.55,7.5442]
[1726563817360,20.0,132.58,132.55,7.5442]
[1726563819279,16.15555357,132.59,132.55,7.5442]
[1726563819657,16.15555357,132.59,132.55,26.4049]
[1726563820581,7.5428,132.58,132.54,7.805112]
[1726563820781,7.5428,132.58,132.54,7.805212]
[1726563820782,31.319784,132.58,132.54,7.805212]
[1726563821584,7.5432,132.57,132.54,0.260412]
[1726563821756,7.5438,132.56,132.54,0.260412]
[1726563829362,27.5434,132.57,132.54,0.260412]
[1726563830685,7.5439,132.56,132.54,0.260412]
[1726563836498,20.0,132.57,132.54,0.260412]
[1726563836499,7.5443,132.55,132.54,0.260412]
[1726563836700,7.544,132.56,132.54,0.260412]
[1726563843605,7.5443,132.55,132.54,0.260412]
[1726563844312,51.321184,132.55,132.54,0.260412]
[1726563845120,55.26645976,132.55,132.54,0.260412]
[1726563846786,51.321184,132.55,132.54,0.260412]
[1726563849223,55.26645976,132.55,132.54,0.260412]
[1726563854708,27.5443,132.55,132.54,0.260412]
[1726563856117,51.321184,132.55,132.54,0.260412]
[1726563856322,27.5443,132.55,132.54,0.260412]
[1726563861098,20.0,132.55,132.54,0.260412]
[1726563861312,7.5439,132.56,132.54,0.260412]
[1726563863932,7.5443,132.55,132.54,0.260412]
[1726563870247,27.5443,132.55,132.54,0.260412]
[1726563871128,51.321184,132.55,132.54,0.260412]
[1726563872542,27.5443,132.55,132.54,0.260412]
[1726563876144,51.321184,132.55,132.54,0.260412]
[1726563876532,20.0,132.55,132.54,0.260412]
[1726563878249,27.5443,132.55,132.54,0.260412]
[1726563879048,7.5443,132.55,132.54,0.260412]
[1726563881332,11.48957576,132.55,132.54,0.260412]
[1726563881831,7.5443,132.55,132.54,0.260412]
[1726563882946,11.48957576,132.55,132.54,0.260412]
[1726563884463,35.26645976,132.55,132.54,0.260412]
[1726563901067,51.321184,132.55,132.54,0.260412]
[1726563914649,27.5443,132.55,132.54,0.260412]
[1726563916780,3.9434207,132.55,132.54,0.260412]
[1726563916975,3.9434207,132.56,132.55,7.5443]
[1726563917174,15.71648501,132.59,132.54,15.551412]
[1726563917175,3.9434207,132.57,132.54,23.096012]
[1726563917357,3.9434207,132.57,132.55,7.5441]
[1726563917697,3.9434207,132.58,132.55,7.5441]
[1726563917983,11.4860207,132.58,132.54,23.096012]
[1726563918354,11.4860207,132.58,132.55,7.5442]
[1726563918555,3.9434207,132.58,132.55,7.5442]
[1726563919493,11.4856207,132.59,132.55,7.5442]
[1726563919989,3.9434207,132.58,132.55,7.5442]
[1726563920192,11.4856207,132.59,132.55,7.5442]
[1726563922378,3.9434207,132.59,132.56,7.5433]
[1726563922568,3.9434207,132.59,132.57,7.5431]
[1726563923485,3.9434207,132.6,132.57,7.5431]
[1726563923783,3.9434207,132.6,132.56,7.5436]
[1726563923784,11.4849207,132.6,132.56,7.5436]
[1726563924358,7.5415,132.6,132.56,7.5436]
[1726563924663,3.9434207,132.61,132.58,22.8448]
[1726563924868,3.9434207,132.61,132.6,7.5414]
[1726563925077,11.4833207,132.63,132.59,26.3966]
[1726563925287,7.5403,132.62,132.59,26.3966]
[1726563925781,3.9434207,132.63,132.59,26.3966]
[1726563925782,11.4834207,132.63,132.59,26.3966]
[1726563927359,11.4834207,132.63,132.6,7.5414]
[1726563927562,7.54,132.63,132.59,26.3966]
[1726563930685,7.54,132.63,132.6,7.5414]
[1726563932172,11.4819207,132.66,132.62,7.5402]
[1726563932468,7.5385,132.66,132.62,42.0413]
[1726563933086,7.5385,132.66,132.62,43.5490317]
[1726563933282,7.5385,132.66,132.62,42.0413]
[1726563936380,7.5386,132.65,132.62,42.0413]
[1726563942995,7.5386,132.65,132.62,34.5013]
[1726563943295,7.5392,132.64,132.61,6.3016]
[1726563945705,7.5392,132.64,132.6,26.3947]
[1726563949815,7.5394,132.64,132.6,26.3947]
[1726563950294,7.5399,132.63,132.6,18.8536]
[1726563951731,18.8452,132.66,132.59,23.6665]
[1726563951886,7.5404,132.62,132.59,23.6665]
[1726563952608,7.5404,132.62,132.59,16.1247]
[1726563954209,7.5404,132.62,132.59,23.6667]
[1726563955812,7.54,132.63,132.59,23.6667]
[1726563959417,7.5403,132.62,132.59,23.6667]
[1726563961019,7.5403,132.62,132.59,16.1247]
[1726563961400,7.5409,132.61,132.59,16.1247]
[1726563962948,7.5414,132.6,132.56,42.5063]
[1726563963333,7.5429,132.58,132.56,16.1035]
[1726563963800,7.5422,132.59,132.56,16.1035]
[1726563967628,7.5426,132.58,132.56,16.1035]
[1726563972538,7.5422,132.59,132.56,16.1035]
[1726563978336,31.318484,132.6,132.56,23.6471]
[1726563982147,7.542,132.59,132.56,23.6471]
[1726564000954,31.46879618,132.6,132.56,23.6471]
[1726564002163,3.92719618,132.6,132.59,7.542]
[1726564002328,3.92719618,132.61,132.59,15.09675066]
[1726564002531,11.46699618,132.63,132.6,15.1494]
[1726564002729,11.46699618,132.63,132.6,22.6906]
[1726564002730,3.92719618,132.63,132.6,22.6906]
[1726564002955,7.5393,132.64,132.61,1.50799735]
[1726564002956,3.92719618,132.64,132.61,1.50799735]
[1726564003132,3.92719618,132.65,132.63,7.5393]
[1726564003333,3.92719618,132.65,132.63,9.04696843]
[1726564003563,3.92719618,132.66,132.63,9.04696843]
[1726564004276,11.46519618,132.66,132.63,1.50766843]
[1726564004447,11.46519618,132.66,132.62,26.3901]
[1726564004651,3.92719618,132.66,132.62,26.3901]
[1726564005551,3.92719618,132.66,132.63,9.04731533]
[1726564005749,3.92719618,132.67,132.63,9.04731533]
[1726564006079,3.92719618,132.67,132.64,7.539]
[1726564006247,3.92719618,132.67,132.65,1.50750744]
[1726564006972,3.92719618,132.67,132.64,7.539]
[1726564007269,3.92719618,132.67,132.63,7.5396]
[1726564009072,3.92719618,132.67,132.64,7.5391]
[1726564011571,11.72460818,132.68,132.64,7.5391]
[1726564013889,4.18760818,132.68,132.65,17.71626462]
[1726564014071,0.260412,132.68,132.67,7.5374]
[1726564014455,0.260412,132.68,132.67,13.622]
[1726564017463,0.260412,132.68,132.67,25.83639406]
[1726564017784,0.260412,132.68,132.67,27.34326315]
[1726564017961,0.260412,132.68,132.67,49.61327806]
[1726564018580,0.260412,132.68,132.67,69.61327806]
[1726564019952,0.260412,132.68,132.67,99.61327806]
[1726564020888,0.260412,132.68,132.67,101.11965869]
[1726564022063,0.260412,132.68,132.67,95.03505869]
[1726564022279,0.260412,132.68,132.67,93.52867806]
[1726564023082,0.260412,132.68,132.67,95.03505984]
[1726564024085,0.260412,132.68,132.67,93.52867806]
[1726564024276,0.260412,132.68,132.67,63.52867806]
[1726564026074,0.260412,132.68,132.67,65.03523666]
[1726564026273,0.260412,132.72,132.67,65.03523666]
[1726564026274,0.260412,132.72,132.71,64.0493]
[1726564026461,0.260412,132.72,132.71,76.26369406]
[1726564028186,0.260412,132.72,132.71,64.0493]
[1726564029574,0.260412,132.72,132.71,101.54685151]
[1726564029970,0.260412,132.72,132.71,100.04057806]
[1726564031569,0.260412,132.72,132.71,87.826184]
[1726564034396,0.260412,132.72,132.71,100.04057806]
[1726564037204,0.260412,132.72,132.71,64.0493]
[1726564037369,0.260412,132.72,132.71,26.3732]
[1726564040969,0.260412,132.72,132.71,18.838]
[1726564041178,0.260412,132.72,132.7,7.5357]
[1726564042395,0.260412,132.72,132.69,7.5362]
[1726564043079,7.795112,132.72,132.69,7.5362]
[1726564043471,0.260412,132.72,132.69,7.5362]
[1726564043671,7.795112,132.72,132.68,26.3775]
[1726564045000,7.795112,132.72,132.69,7.5363]
[1726564046890,7.795112,132.72,132.68,26.3773]
[1726564050196,7.795112,132.72,132.69,7.5362]
[1726564054309,0.260412,132.72,132.7,7.5356]
[1726564054506,0.260412,132.72,132.7,26.375]
[1726564054810,0.260412,132.72,132.71,7.5352]
[1726564056409,0.260412,132.72,132.7,18.8394]
[1726564056410,0.260412,132.72,132.7,26.3749]
[1726564059711,7.5336,132.74,132.7,26.3749]
[1726564059913,0.2782532,132.72,132.7,26.3749]
[1726564060117,0.2782532,132.72,132.7,18.8394]
[1726564060291,0.2782532,132.72,132.66,37.6885]
[1726564060292,7.8131532,132.72,132.68,7.5367]
[1726564062211,7.8131532,132.72,132.69,7.5363]
[1726564063317,7.8131532,132.72,132.68,7.5368]
[1726564063488,7.8131532,132.72,132.67,18.843]
[1726564063489,7.5353,132.71,132.67,26.3802]
[1726564064612,7.5353,132.71,132.68,7.5368]
[1726564068216,7.5353,132.71,132.67,26.3803]
[1726564070617,7.5353,132.71,132.68,7.5368]
[1726564074025,7.8131532,132.72,132.68,7.5368]
[1726564076324,7.5352,132.71,132.68,7.5368]
[1726564078521,7.5352,132.71,132.67,26.3803]
[1726564080122,7.5366,132.69,132.65,26.3849]
[1726564080300,7.5366,132.69,132.66,7.538]
[1726564080496,18.22814938,132.72,132.67,20.35037355]
[1726564080730,4.20544938,132.72,132.69,7.5363]
[1726564080909,11.74004938,132.72,132.69,7.5363]
[1726564081111,11.74004938,132.72,132.68,7.5367]
[1726564082129,7.5356,132.71,132.67,26.3805]
[1726564082301,4.20544938,132.72,132.66,7.5378]
[1726564082704,23.776884,132.71,132.66,7.5378]
[1726564082907,7.536,132.7,132.66,7.5378]
[1726564083319,7.5365,132.69,132.65,7.5384]
[1726564084624,7.5378,132.67,132.64,18.8469]
[1726564084930,7.5378,132.67,132.64,26.3859]
[1726564085113,7.5371,132.68,132.64,26.3859]
[1726564086726,7.5375,132.67,132.64,26.3859]
[1726564087732,7.5371,132.68,132.64,26.3859]
[1726564088628,7.5371,132.68,132.65,7.5386]
[1726564088824,7.5365,132.69,132.65,7.5386]
[1726564090104,11.46369618,132.69,132.65,7.5386]
[1726564090301,7.5365,132.69,132.65,7.5386]
[1726564091238,11.46369618,132.69,132.65,7.5386]
[1726564095642,3.92719618,132.69,132.66,18.8445]
[1726564095947,11.46359618,132.69,132.66,26.3823]
[1726564096137,11.46359618,132.69,132.66,18.8445]
[1726564096444,31.46319618,132.7,132.66,26.3824]
[1726564097657,7.5363,132.69,132.66,26.3824]
[1726564098553,7.5363,132.69,132.66,18.8445]
[1726564099732,7.5369,132.68,132.65,7.5384]
[1726564100135,7.5369,132.68,132.64,23.6121]
[1726564105662,7.5369,132.68,132.65,7.5384]
[1726564105866,11.46379618,132.69,132.65,7.5384]
[1726564106665,11.46309618,132.7,132.66,9.04531255]
[1726564106862,23.776884,132.71,132.63,7.5394]
[1726564106863,7.5379,132.67,132.63,7.5394]
[1726564107049,24.25695383,132.67,132.62,26.3895]
[1726564107370,25.61622412,132.67,132.62,26.3895]
[1726564107735,7.5386,132.65,132.62,26.3895]
[1726564110240,27.70408018,132.67,132.64,7.5388]
[1726564110555,7.538,132.66,132.63,26.3875]
[1726564110762,7.538,132.66,132.63,18.848]
[1726564111966,7.5387,132.65,132.61,26.3927]
[1726564116467,7.5381,132.66,132.62,7.5399]
[1726564117356,7.5386,132.65,132.62,7.5399]
[1726564120180,7.5383,132.66,132.62,7.5399]
[1726564120356,7.5377,132.67,132.63,26.3888]
[1726564126070,11.46489618,132.67,132.63,26.3888]
[1726564126655,7.5377,132.67,132.63,26.3888]
[1726564127166,11.46489618,132.67,132.63,26.3888]
[1726564131571,3.92719618,132.67,132.63,18.8493]
[1726564131781,31.46419618,132.68,132.64,7.539]
[1726564132271,7.5375,132.67,132.64,7.539]
[1726564132851,7.5375,132.67,132.63,18.8493]
[1726564132852,7.5375,132.67,132.63,26.3888]
[1726564133275,11.46389618,132.69,132.65,7.5382]
[1726564133468,3.92719618,132.69,132.66,7.5379]
[1726564134380,11.46359618,132.69,132.66,7.5379]
[1726564136389,11.46359618,132.69,132.65,26.3849]
[1726564138188,11.46359618,132.69,132.65,18.8464]
[1726564138189,7.537,132.68,132.65,18.8464]
[1726564138370,7.537,132.68,132.64,7.5389]
[1726564138371,11.46419618,132.68,132.64,7.5389]
[1726564139358,7.537,132.68,132.64,7.5389]
[1726564139765,11.46419618,132.68,132.64,7.5389]
[1726564140658,3.92719618,132.68,132.66,7.5379]
[1726564140991,3.92719618,132.68,132.65,26.3843]
[1726564141285,11.46429618,132.68,132.65,18.846]
[1726564141661,7.5375,132.67,132.63,23.8011]
[1726564141883,3.92719618,132.68,132.64,18.8479]
[1726564142071,3.92719618,132.68,132.65,7.5381]
[1726564144565,3.92719618,132.68,132.67,54.72279406]
[1726564144867,0.2782532,132.72,132.71,26.3732]
[1726564145059,0.2782532,132.72,132.71,25.1008]
[1726564145267,0.2782532,132.72,132.71,53.44249406]
[1726564145582,0.2782532,132.72,132.71,20.34434382]
[1726564145789,0.2782532,132.72,132.71,31.05239406]
[1726564145987,0.2782532,132.72,132.71,40.34432314]
[1726564146202,0.2573324,132.76,132.74,7.5332]
[1726564146370,0.2573324,132.76,132.75,1.50623014]
[1726564146880,0.2573324,132.76,132.74,7.5332]
[1726564147077,10.04622951,132.75,132.74,7.5335]
[1726564147396,0.2573324,132.76,132.75,24.8982]
[1726564148874,0.2573324,132.76,132.75,26.40427837]
[1726564149373,0.2573324,132.76,132.75,24.8982]
[1726564149689,0.2573324,132.76,132.75,26.40427755]
[1726564151978,0.2573324,132.76,132.75,24.8982]
[1726564152698,0.2573324,132.76,132.72,15.4731]
[1726564154097,0.2573324,132.76,132.74,7.5335]
[1726564157285,0.2573324,132.76,132.75,7.5329]
[1726564159407,0.2573324,132.76,132.75,9.03887918]
[1726564160804,0.2573324,132.76,132.75,58.91797324]
[1726564161002,0.2573324,132.76,132.75,80.48747324]
[1726564162792,0.2573324,132.76,132.75,104.26435724]
[1726564163696,0.2573324,132.76,132.75,102.75837806]
[1726564163993,0.2573324,132.76,132.75,90.543984]
[1726564164590,0.2573324,132.76,132.75,66.7671]
[1726564164795,0.2573324,132.76,132.75,29.1024]
[1726564165895,0.2573324,132.76,132.75,22.9508]
[1726564167597,0.2573324,132.76,132.75,7.5329]
[1726564170500,0.2573324,132.76,132.75,9.03912365]
[1726564170826,0.2573324,132.76,132.75,7.5329]
[1726564173501,0.2573324,132.76,132.73,26.3678]
[1726564173798,0.2573324,132.76,132.73,18.834]
[1726564174000,7.5331,132.75,132.71,7.535]
[1726564174200,52.3188164,132.76,132.68,24.0633]
[1726564174409,20.0,132.73,132.67,18.8426]
[1726564174621,20.0,132.73,132.66,7.5379]
[1726564174799,20.0,132.73,132.67,7.5374]
[1726564174800,7.5352,132.71,132.67,7.5374]
[1726564175509,7.5352,132.71,132.66,26.3827]
[1726564175726,23.776884,132.72,132.63,18.8488]
[1726564175904,23.776884,132.72,132.62,6.3246324]
[1726564176104,31.311984,132.72,132.66,7.5375]
[1726564176431,31.311984,132.72,132.65,18.8457]
[1726564176432,31.311984,132.72,132.67,7.5372]
[1726564177227,23.776884,132.72,132.67,18.8428]
[1726564178011,20.0,132.73,132.68,7.5364]
[1726564178012,27.5342,132.73,132.68,7.5364]
[1726564178708,18.8285,132.78,132.62,44.0258324]
[1726564178911,7.5314,132.78,132.72,18.8366]
[1726564179126,22.3527324,132.76,132.7,7.5357]
[1726564180218,23.776884,132.75,132.7,7.5357]
[1726564181913,22.3527324,132.76,132.7,7.5357]
[1726564182931,7.7897324,132.76,132.71,7.5351]
[1726564183102,7.7897324,132.76,132.72,7.5345]
[1726564183103,0.2573324,132.76,132.72,7.5345]
[1726564185735,7.7897324,132.76,132.72,7.5345]
[1726564186033,0.2573324,132.76,132.72,7.5345]
[1726564187221,7.7898324,132.76,132.71,7.5351]
[1726564188540,7.5331,132.75,132.71,7.5351]
[1726564188746,7.5335,132.74,132.7,26.3738]
[1726564196337,7.533,132.75,132.7,18.8382]
[1726564196527,7.533,132.75,132.71,7.5348]
[1726564198053,7.533,132.75,132.72,7.5346]
[1726564198850,7.534,132.74,132.7,26.3736]
[1726564200531,7.5332,132.75,132.71,7.5351]
[1726564200931,7.5336,132.74,132.71,7.5351]
[1726564201137,7.5336,132.74,132.7,18.8382]
[1726564201138,7.5336,132.74,132.7,26.3737]
[1726564201443,7.5346,132.72,132.69,7.5361]
[1726564201740,7.5343,132.73,132.7,7.5356]
[1726564202241,7.5335,132.74,132.7,7.5356]
[1726564205238,20.2573324,132.76,132.73,18.8352]
[1726564205421,27.7897324,132.76,132.73,26.3689]
[1726564206025,27.7897324,132.76,132.73,18.8352]
[1726564206719,0.2573324,132.76,132.73,26.3688]